fUSD/lending_fUSD_20250720
["ID","MTS","AMOUNT","RATE_DAILY","PERIOD"]
[373539692,1753035052956,-1713.05,0.00019178,2]
[373539694,1753035052965,-1713.05,0.00019178,2]
[373539696,1753035052975,-1713.05,0.00019178,2]
[373539698,1753035052986,-1523.31867848,0.00019178,2]
[373539701,1753035053009,-189.73132152,0.00019178,2]
[373539703,1753035053018,-1873.67,0.00019178,2]
[373539705,1753035053028,-460.0,0.00019178,2]
[373539707,1753035053038,-771.32,0.00019178,2]
[373539709,1753035053047,-352.04694969,0.00019178,2]
[373539711,1753035053060,-147.95305031,0.00019178,2]
[373539713,1753035053071,-480.0,0.00019178,2]
[373539715,1753035053080,-480.0,0.00019178,2]
[373539717,1753035053090,-500.0,0.00019178,2]
[373539719,1753035053099,-268.51604697,0.00019178,2]
[373539722,1753035053111,-211.48395303,0.00019178,2]
[373539724,1753035053120,-481.14667423,0.00019178,2]
[373539726,1753035053129,-480.0,0.00019178,2]
[373539728,1753035053138,-2090.51,0.00019178,2]
[373539730,1753035053148,-500.0,0.00019178,2]
[373539732,1753035053158,-2058.7,0.00019178,2]
[373539734,1753035053167,-480.0,0.00019178,2]
[373539736,1753035053177,-480.0,0.00019178,2]
[373539738,1753035053187,-348.38380579,0.00019178,2]
[373539740,1753035053199,-646.64619421,0.00019178,2]
[373539742,1753035053208,-480.0,0.00019178,2]
[373539744,1753035053217,-863.06,0.00019178,2]
[373539746,1753035053227,-480.0,0.00019178,2]
[373539748,1753035053236,-2716.27712663,0.00019178,2]
[373539752,1753035053262,-419.36287337,0.00019178,2]
[373539754,1753035053272,-480.0,0.00019178,2]
[373539756,1753035053281,-443.2277152,0.00019178,2]
[373539758,1753035053291,-7143.88,0.00019178,2]
[373539760,1753035053301,-480.0,0.00019178,2]
[373539773,1753035053500,-480.0,0.00019178,2]
[373539777,1753035053526,-211.23220643,0.00019178,2]
[373539779,1753035053538,-288.76779357,0.00019178,2]
[373539781,1753035053548,-546.11,0.00019178,2]
[373539783,1753035053558,-1345.79,0.00019178,2]
[373539785,1753035053567,-562.33561491,0.00019178,2]
[373539789,1753035053597,-4443.31438509,0.00019178,2]
[373539791,1753035053607,-480.0,0.00019178,2]
[373539794,1753035053618,-1676.17,0.00019178,2]
[373539796,1753035053629,-480.0,0.00019178,2]
[373539798,1753035053639,-3006.46,0.00019178,2]
[373539800,1753035053648,-1719.44,0.00019178,2]
[373539802,1753035053658,-2325.78,0.00019178,2]
[373539804,1753035053668,-193.23561491,0.00019178,2]
[373539806,1753035053679,-32.26033774,0.00019178,2]
[373539808,1753035053690,-400.0,0.00019178,2]
[373539810,1753035053700,-1336.15,0.00019178,2]
[373539812,1753035053709,-480.0,0.00019178,2]
[373539814,1753035053719,-720.05,0.00019178,2]
[373539816,1753035053728,-50.57364134,0.00019178,2]
[373539818,1753035053740,-297.40139154,0.00019178,2]
[373539821,1753035053757,-132.02496712,0.00019178,2]
[373539823,1753035053767,-480.0,0.00019178,2]
[373539825,1753035053777,-747.42,0.00019178,2]
[373539827,1753035053787,-480.0,0.00019178,2]
[373539829,1753035053796,-150.0,0.00019178,2]
[373539831,1753035053806,-733.0,0.00019178,2]
[373539833,1753035053815,-480.0,0.00019178,2]
[373539835,1753035053824,-500.0,0.00019178,2]
[373539837,1753035053834,-2785.04,0.00019178,2]
[373539839,1753035053843,-500.0,0.00019178,2]
[373539841,1753035053852,-503.90124771,0.00019178,2]
[373539843,1753035053862,-500.0,0.00019178,2]
[373539845,1753035053871,-801.3,0.00019178,2]
[373539847,1753035053880,-500.0,0.00019178,2]
[373539849,1753035053889,-500.0,0.00019178,2]
[373539851,1753035053899,-500.0,0.00019178,2]
[373539853,1753035053908,-500.0,0.00019178,2]
[373539855,1753035053917,-480.0,0.00019178,2]
[373539857,1753035053927,-500.0,0.00019178,2]
[373539859,1753035053936,-500.0,0.00019178,2]
[373539861,1753035053946,-500.0,0.00019178,2]
[373539863,1753035053955,-500.0,0.00019178,2]
[373539865,1753035053965,-832.9776355,0.00019178,2]
[373539868,1753035053977,-3129.4323645,0.00019178,2]
[373539870,1753035053986,-500.0,0.00019178,2]
[373539872,1753035053997,-480.0,0.00019178,2]
[373539874,1753035054008,-500.0,0.00019178,2]
[373539876,1753035054018,-500.0,0.00019178,2]
[373539878,1753035054028,-500.0,0.00019178,2]
[373539880,1753035054038,-500.0,0.00019178,2]
[373539882,1753035054047,-500.0,0.00019178,2]
[373539884,1753035054056,-500.0,0.00019178,2]
[373539886,1753035054066,-500.0,0.00019178,2]
[373539887,1753035054075,-151.0,0.00019178,2]
[373539889,1753035054085,-500.0,0.00019178,2]
[373539892,1753035054094,-2858.1,0.00019178,2]
[373539894,1753035054104,-500.0,0.00019178,2]
[373539896,1753035054114,-554.59,0.00019178,2]
[373539898,1753035054123,-500.0,0.00019178,2]
[373539900,1753035054134,-500.0,0.00019178,2]
[373539902,1753035054143,-1648.54608881,0.00019178,2]
[373539912,1753035054231,-831.1037741,0.00019178,2]
[373539956,1753035054644,-1580.52013709,0.00019178,2]
[373539958,1753035054654,-500.0,0.00019178,2]
[373539960,1753035054664,-500.0,0.00019178,2]
[373539962,1753035054673,-2959.02,0.00019178,2]
[373539964,1753035054683,-480.0,0.00019178,2]
[373539966,1753035054693,-2907.87,0.00019178,2]
[373539968,1753035054703,-500.0,0.00019178,2]
[373539970,1753035054713,-441.35585265,0.00019178,2]
[373539972,1753035054723,-500.0,0.00019178,2]
[373539974,1753035054732,-500.0,0.00019178,2]
[373539976,1753035054741,-500.0,0.00019178,2]
[373539978,1753035054750,-434.037109,0.00019178,2]
[373539980,1753035054759,-480.0,0.00019178,2]
[373539981,1753035054769,-434.037109,0.00019178,2]
[373539982,1753035054779,-480.0,0.00019178,2]
[373539983,1753035054787,-434.037109,0.00019178,2]
[373539984,1753035054796,-500.0,0.00019178,2]
[373539985,1753035054806,-434.037109,0.00019178,2]
[373539986,1753035054815,-442.90354761,0.00019178,2]
[373539987,1753035054824,-158.39942055,0.00019178,2]
[373539990,1753035054861,-341.60057945,0.00019178,2]
[373539992,1753035054871,-434.037109,0.00019178,2]
[373539994,1753035054881,-434.037109,0.00019178,2]
[373539996,1753035054890,-1208.96,0.00019178,2]
[373539998,1753035054900,-434.037109,0.00019178,2]
[373540000,1753035054909,-500.0,0.00019178,2]
[373540002,1753035054919,-1243.91,0.00019178,2]
[373540004,1753035054928,-480.0,0.00019178,2]
[373540006,1753035054938,-247.73806286,0.00019178,2]
[373540008,1753035054947,-434.037109,0.00019178,2]
[373540010,1753035054956,-434.037109,0.00019178,2]
[373540012,1753035054965,-500.0,0.00019178,2]
[373540014,1753035054975,-434.037109,0.00019178,2]
[373540016,1753035054984,-500.0,0.00019178,2]
[373540018,1753035054993,-434.037109,0.00019178,2]
[373540020,1753035055003,-500.0,0.00019178,2]
[373540022,1753035055012,-434.037109,0.00019178,2]
[373540024,1753035055022,-500.0,0.00019178,2]
[373540027,1753035055031,-500.0,0.00019178,2]
[373540029,1753035055041,-434.037109,0.00019178,2]
[373540031,1753035055051,-500.0,0.00019178,2]
[373540033,1753035055060,-434.037109,0.00019178,2]
[373540035,1753035055069,-500.0,0.00019178,2]
[373540037,1753035055079,-480.0,0.00019178,2]
[373540039,1753035055089,-535.63180062,0.00019178,2]
[373540041,1753035055098,-500.0,0.00019178,2]
[373540043,1753035055108,-5696.31240072,0.00019178,2]
[373540052,1753035055189,-590.5,0.00019178,2]
[373540054,1753035055200,-559.20819999,0.00019178,2]
[373540064,1753035055285,-1479.85,0.00019178,2]
[373540066,1753035055297,-640.11939929,0.00019178,2]
[373540069,1753035055308,-480.0,0.00019178,2]
[373540071,1753035055318,-110.72451484,0.00019178,2]
[373540077,1753035055367,-1780.52548516,0.00019178,2]
[373540079,1753035055376,-5216.7,0.00019178,2]
[373540081,1753035055386,-460.0,0.00019178,2]
[373540083,1753035055395,-480.0,0.00019178,2]
[373540085,1753035055405,-527.48,0.00019178,2]
[373540087,1753035055414,-434.037109,0.00019178,2]
[373540089,1753035055424,-480.0,0.00019178,2]
[373540090,1753035055433,-480.0,0.00019178,2]
[373540092,1753035055442,-434.037109,0.00019178,2]
[373540094,1753035055451,-434.037109,0.00019178,2]
[373540096,1753035055462,-434.037109,0.00019178,2]
[373540099,1753035055471,-460.0,0.00019178,2]
[373540101,1753035055481,-434.037109,0.00019178,2]
[373540103,1753035055491,-434.037114,0.00019178,2]
[373540104,1753035055500,-480.0,0.00019178,2]
[373540106,1753035055510,-480.0,0.00019178,2]
[373540109,1753035055519,-673.05,0.00019178,2]
[373540110,1753035055529,-480.0,0.00019178,2]
[373540113,1753035055539,-748.43,0.00019178,2]
[373540115,1753035055551,-480.0,0.00019178,2]
[373540117,1753035055561,-480.0,0.00019178,2]
[373540119,1753035055570,-5479.51,0.00019178,2]
[373540121,1753035055579,-1373.36,0.00019178,2]
[373540123,1753035055588,-585.4,0.00019178,2]
[373540124,1753035055597,-480.0,0.00019178,2]
[373540126,1753035055607,-1303.45,0.00019178,2]
[373540129,1753035055617,-546.47575713,0.00019178,2]
[373540131,1753035055629,-460.0,0.00019178,2]
[373540133,1753035055639,-1857.17,0.00019178,2]
[373540135,1753035055648,-480.0,0.00019178,2]
[373540136,1753035055659,-661.81,0.00019178,2]
[373540139,1753035055668,-4808.32,0.00019178,2]
[373540141,1753035055678,-387.15028574,0.00019178,2]
[373540143,1753035055689,-480.0,0.00019178,2]
[373540145,1753035055699,-480.0,0.00019178,2]
[373540147,1753035055711,-480.0,0.00019178,2]
[373540149,1753035055721,-480.0,0.00019178,2]
[373540151,1753035055731,-9393.11,0.00019178,2]
[373540153,1753035055741,-1774.51031987,0.00019178,2]
[373540203,1753035056284,-12.46968013,0.00019178,2]
[373540205,1753035056294,-480.0,0.00019178,2]
[373540207,1753035056303,-108.68031987,0.00019178,2]
[373540209,1753035056314,-371.31968013,0.00019178,2]
[373540211,1753035056323,-480.0,0.00019178,2]
[373540213,1753035056332,-1029.94,0.00019178,2]
[373540215,1753035056341,-614.47,0.00019178,2]
[373540217,1753035056350,-480.0,0.00019178,2]
[373540219,1753035056359,-3530.78291129,0.00019178,2]
[373540221,1753035056370,-265.44809306,0.00019178,2]
[373540223,1753035056381,-472.08,0.00019178,2]
[373540225,1753035056393,-1434.48899565,0.00019178,2]
[373540227,1753035056401,-480.0,0.00019178,2]
[373540229,1753035056410,-480.0,0.00019178,2]
[373540231,1753035056419,-100.31350434,0.00019178,2]
[373540275,1753035056901,-572.74145778,0.00019178,2]
[373540276,1753035056912,-102.68503788,0.00019178,2]
[373540278,1753035056922,-480.0,0.00019178,2]
[373540279,1753035056932,-480.0,0.00019178,2]
[373540281,1753035056941,-1721.99,0.00019178,2]
[373540282,1753035056950,-631.24,0.00019178,2]
[373540284,1753035056959,-150.0,0.00019178,2]
[373540286,1753035056968,-1001.03,0.00019178,2]
[373540287,1753035056976,-448.60946563,0.00019178,2]
[373540289,1753035056987,-4986.9095124,0.00019178,2]
[373540291,1753035056998,-1326.74075894,0.00019178,2]
[373540292,1753035057009,-2155.05026303,0.00019178,2]
[373540294,1753035057017,-1497.22661842,0.00019178,2]
[373540297,1753035057042,-1015.64338158,0.00019178,2]
[373540298,1753035057051,-480.0,0.00019178,2]
[373540300,1753035057060,-454.50060474,0.00019178,2]
[373540302,1753035057071,-25.49939526,0.00019178,2]
[373540303,1753035057081,-551.36,0.00019178,2]
[373540305,1753035057090,-480.0,0.00019178,2]
[373540306,1753035057099,-834.36,0.00019178,2]
[373540308,1753035057108,-421.58413623,0.00019178,2]
[373540310,1753035057118,-480.0,0.00019178,2]
[373540311,1753035057127,-480.0,0.00019178,2]
[373540313,1753035057138,-480.0,0.00019178,2]
[373540315,1753035057147,-2496.52,0.00019178,2]
[373540316,1753035057156,-480.0,0.00019178,2]
[373540318,1753035057166,-2147.0,0.00019178,2]
[373540319,1753035057175,-1692.85271841,0.00019178,2]
[373540321,1753035057187,-163.41728159,0.00019178,2]
[373540323,1753035057196,-480.0,0.00019178,2]
[373540325,1753035057205,-1725.52,0.00019178,2]
[373540326,1753035057215,-385.05615538,0.00019178,2]
[373540328,1753035057224,-246.00656303,0.00019178,2]
[373540341,1753035057398,-233.99343697,0.00019178,2]
[373540342,1753035057407,-791.20732785,0.00019178,2]
[373540344,1753035057417,-3839.35,0.00019178,2]
[373540392,1753035058084,-3146.02267215,0.00019178,2]
[373540394,1753035058093,-480.0,0.00019178,2]
[373540396,1753035058103,-2756.07,0.00019178,2]
[373540398,1753035058112,-480.0,0.00019178,2]
[373540400,1753035058121,-1924.69,0.00019178,2]
[373540402,1753035058130,-2240.36,0.00019178,2]
[373540404,1753035058139,-3868.02,0.00019178,2]
[373540406,1753035058148,-480.0,0.00019178,2]
[373540408,1753035058158,-3063.14,0.00019178,2]
[373540410,1753035058167,-480.0,0.00019178,2]
[373540412,1753035058177,-2918.07,0.00019178,2]
[373540414,1753035058187,-480.0,0.00019178,2]
[373540416,1753035058197,-633.23,0.00019178,2]
[373540418,1753035058206,-1431.69,0.00019178,2]
[373540420,1753035058215,-360.0,0.00019178,2]
[373540422,1753035058224,-480.0,0.00019178,2]
[373540424,1753035058233,-480.0,0.00019178,2]
[373540426,1753035058243,-1813.92,0.00019178,2]
[373540428,1753035058252,-480.0,0.00019178,2]
[373540430,1753035058261,-3008.72,0.00019178,2]
[373540432,1753035058270,-1462.71,0.00019178,2]
[373540434,1753035058282,-480.0,0.00019178,2]
[373540436,1753035058291,-480.0,0.00019178,2]
[373540438,1753035058300,-460.0,0.00019178,2]
[373540440,1753035058309,-1409.43,0.00019178,2]
[373540442,1753035058319,-480.0,0.00019178,2]
[373540444,1753035058330,-1409.43,0.00019178,2]
[373540446,1753035058339,-480.0,0.00019178,2]
[373540448,1753035058348,-1409.43,0.00019178,2]
[373540450,1753035058358,-1409.43,0.00019178,2]
[373540452,1753035058367,-480.0,0.00019178,2]
[373540454,1753035058376,-1409.43,0.00019178,2]
[373540456,1753035058385,-500.0,0.00019178,2]
[373540458,1753035058395,-1409.43,0.00019178,2]
[373540460,1753035058404,-500.0,0.00019178,2]
[373540462,1753035058413,-1409.43,0.00019178,2]
[373540464,1753035058422,-500.0,0.00019178,2]
[373540466,1753035058431,-1409.43,0.00019178,2]
[373540468,1753035058440,-500.0,0.00019178,2]
[373540470,1753035058449,-1409.43,0.00019178,2]
[373540472,1753035058458,-500.0,0.00019178,2]
[373540474,1753035058467,-500.0,0.00019178,2]
[373540476,1753035058476,-500.0,0.00019178,2]
[373540478,1753035058485,-1253.25,0.00019178,2]
[373540481,1753035058495,-480.0,0.00019178,2]
[373540483,1753035058504,-480.0,0.00019178,2]
[373540484,1753035058513,-9000.38,0.00019178,2]
[373540486,1753035058523,-480.0,0.00019178,2]
[373540488,1753035058534,-480.0,0.00019178,2]
[373540490,1753035058543,-480.0,0.00019178,2]
[373540492,1753035058552,-480.0,0.00019178,2]
[373540494,1753035058561,-3130.27,0.00019178,2]
[373540496,1753035058570,-480.0,0.00019178,2]
[373540498,1753035058579,-480.0,0.00019178,2]
[373540500,1753035058588,-604.16,0.00019178,2]
[373540502,1753035058597,-480.0,0.00019178,2]
[373540504,1753035058607,-514.63,0.00019178,2]
[373540506,1753035058616,-480.0,0.00019178,2]
[373540508,1753035058628,-480.0,0.00019178,2]
[373540510,1753035058638,-229.93396329,0.00019178,2]
[373540512,1753035058647,-2470.55,0.00019178,2]
[373540514,1753035058656,-480.0,0.00019178,2]
[373540516,1753035058666,-1856.76,0.00019178,2]
[373540518,1753035058675,-480.0,0.00019178,2]
[373540520,1753035058684,-4002.22,0.00019178,2]
[373540522,1753035058693,-480.0,0.00019178,2]
[373540524,1753035058704,-1099.67864,0.00019178,2]
[373540526,1753035058714,-744.29,0.00019178,2]
[373540528,1753035058723,-697.24,0.00019178,2]
[373540530,1753035058732,-2118.86,0.00019178,2]
[373540532,1753035058741,-1125.67,0.00019178,2]
[373540534,1753035058750,-5299.34,0.00019178,2]
[373540536,1753035058759,-460.0,0.00019178,2]
[373540538,1753035058768,-480.0,0.00019178,2]
[373540540,1753035058778,-1170.47,0.00019178,2]
[373540542,1753035058789,-809.12,0.00019178,2]
[373540544,1753035058797,-25193.51,0.00019178,2]
[373540546,1753035058806,-480.0,0.00019178,2]
[373540548,1753035058815,-1939.35,0.00019178,2]
[373540550,1753035058825,-1290.78,0.00019178,2]
[373540552,1753035058834,-480.0,0.00019178,2]
[373540554,1753035058843,-444.27399949,0.00019178,2]
[373540556,1753035058852,-1338.41,0.00019178,2]
[373540558,1753035058861,-480.0,0.00019178,2]
[373540560,1753035058870,-480.0,0.00019178,2]
[373540562,1753035058880,-480.0,0.00019178,2]
[373540564,1753035058890,-480.0,0.00019178,2]
[373540566,1753035058900,-834.09,0.00019178,2]
[373540568,1753035058909,-460.0,0.00019178,2]
[373540570,1753035058918,-480.0,0.00019178,2]
[373540587,1753035059054,-488.12,0.00019178,2]
[373540589,1753035059073,-480.0,0.00019178,2]
[373540591,1753035059083,-3929.01,0.00019178,2]
[373540593,1753035059092,-3179.09,0.00019178,2]
[373540595,1753035059101,-552.73894415,0.00019178,2]
[373540597,1753035059111,-5084.38,0.00019178,2]
[373540599,1753035059120,-480.0,0.00019178,2]
[373540601,1753035059129,-480.0,0.00019178,2]
[373540603,1753035059139,-1437.76,0.00019178,2]
[373540605,1753035059148,-636.15,0.00019178,2]
[373540607,1753035059158,-441.96840746,0.00019178,2]
[373540610,1753035059172,-480.0,0.00019178,2]
[373540612,1753035059188,-480.0,0.00019178,2]
[373540613,1753035059197,-3449.02,0.00019178,2]
[373540615,1753035059207,-3186.13,0.00019178,2]
[373540617,1753035059216,-1340.84,0.00019178,2]
[373540619,1753035059226,-1594.99,0.00019178,2]
[373540621,1753035059235,-2000.0,0.00019178,2]
[373540624,1753035059245,-480.0,0.00019178,2]
[373540626,1753035059255,-5739.8,0.00019178,2]
[373540628,1753035059264,-9445.73,0.00019178,2]
[373540630,1753035059273,-480.0,0.00019178,2]
[373540631,1753035059283,-150.0,0.00019178,2]
[373540633,1753035059292,-480.0,0.00019178,2]
[373540636,1753035059303,-11238.2,0.00019178,2]
[373540637,1753035059313,-480.0,0.00019178,2]
[373540639,1753035059322,-673.92,0.00019178,2]
[373540641,1753035059332,-2820.0,0.00019178,2]
[373540643,1753035059341,-1349.99,0.00019178,2]
[373540645,1753035059351,-480.0,0.00019178,2]
[373540647,1753035059360,-480.0,0.00019178,2]
[373540649,1753035059369,-480.0,0.00019178,2]
[373540651,1753035059378,-3231.3,0.00019178,2]
[373540653,1753035059387,-1077.73,0.00019178,2]
[373540655,1753035059397,-480.0,0.00019178,2]
[373540657,1753035059406,-480.0,0.00019178,2]
[373540659,1753035059415,-480.0,0.00019178,2]
[373540661,1753035059424,-1284.34,0.00019178,2]
[373540663,1753035059434,-5248.6,0.00019178,2]
[373540666,1753035059443,-896.76,0.00019178,2]
[373540668,1753035059453,-480.0,0.00019178,2]
[373540670,1753035059462,-480.0,0.00019178,2]
[373540672,1753035059472,-2056.04,0.00019178,2]
[373540674,1753035059481,-480.0,0.00019178,2]
[373540675,1753035059490,-480.0,0.00019178,2]
[373540677,1753035059499,-480.0,0.00019178,2]
[373540679,1753035059508,-722.78,0.00019178,2]
[373540681,1753035059518,-4963.4,0.00019178,2]
[373540683,1753035059527,-480.0,0.00019178,2]
[373540685,1753035059537,-924.02,0.00019178,2]
[373540687,1753035059546,-1523.48,0.00019178,2]
[373540689,1753035059555,-480.0,0.00019178,2]
[373540691,1753035059564,-480.0,0.00019178,2]
[373540693,1753035059574,-151.0,0.00019178,2]
[373540695,1753035059584,-932.82,0.00019178,2]
[373540697,1753035059593,-151.0,0.00019178,2]
[373540700,1753035059604,-7308.82,0.00019178,2]
[373540702,1753035059613,-151.0,0.00019178,2]
[373540704,1753035059625,-166.84665,0.00019178,2]
[373540706,1753035059634,-480.0,0.00019178,2]
[373540708,1753035059643,-619.79,0.00019178,2]
[373540710,1753035059652,-480.0,0.00019178,2]
[373540711,1753035059663,-480.0,0.00019178,2]
[373540712,1753035059672,-480.0,0.00019178,2]
[373540713,1753035059681,-480.0,0.00019178,2]
[373540714,1753035059690,-500.0,0.00019178,2]
[373540715,1753035059701,-2408.5,0.00019178,2]
[373540716,1753035059711,-500.0,0.00019178,2]
[373540717,1753035059720,-500.0,0.00019178,2]
[373540718,1753035059729,-500.0,0.00019178,2]
[373540719,1753035059738,-500.0,0.00019178,2]
[373540721,1753035059747,-500.0,0.00019178,2]
[373540722,1753035059756,-500.0,0.00019178,2]
[373540724,1753035059765,-500.0,0.00019178,2]
[373540726,1753035059774,-500.0,0.00019178,2]
[373540728,1753035059784,-500.0,0.00019178,2]
[373540730,1753035059793,-500.0,0.00019178,2]
[373540732,1753035059802,-500.0,0.00019178,2]
[373540734,1753035059812,-500.0,0.00019178,2]
[373540736,1753035059821,-3158.47,0.00019178,2]
[373540738,1753035059830,-500.0,0.00019178,2]
[373540740,1753035059839,-500.0,0.00019178,2]
[373540742,1753035059848,-500.0,0.00019178,2]
[373540744,1753035059857,-500.0,0.00019178,2]
[373540745,1753035059866,-500.0,0.00019178,2]
[373540747,1753035059876,-500.0,0.00019178,2]
[373540749,1753035059885,-500.0,0.00019178,2]
[373540751,1753035059895,-500.0,0.00019178,2]
[373540753,1753035059905,-480.0,0.00019178,2]
[373540755,1753035059914,-500.0,0.00019178,2]
[373540756,1753035059923,-500.0,0.00019178,2]
[373540758,1753035059931,-372.116225,0.00019178,2]
[373540760,1753035059941,-500.0,0.00019178,2]
[373540762,1753035059950,-372.116225,0.00019178,2]
[373540764,1753035059960,-500.0,0.00019178,2]
[373540766,1753035059969,-372.116225,0.00019178,2]
[373540768,1753035059978,-500.0,0.00019178,2]
[373540770,1753035059987,-572.41,0.00019178,2]
[373540772,1753035059997,-500.0,0.00019178,2]
[373540774,1753035060006,-372.116225,0.00019178,2]
[373540776,1753035060015,-500.0,0.00019178,2]
[373540778,1753035060024,-372.116225,0.00019178,2]
[373540780,1753035060035,-372.116225,0.00019178,2]
[373540782,1753035060046,-500.0,0.00019178,2]
[373540784,1753035060056,-372.116225,0.00019178,2]
[373540786,1753035060066,-480.0,0.00019178,2]
[373540788,1753035060076,-500.0,0.00019178,2]
[373540790,1753035060085,-500.0,0.00019178,2]
[373540792,1753035060095,-500.0,0.00019178,2]
[373540794,1753035060105,-372.116225,0.00019178,2]
[373540796,1753035060114,-500.0,0.00019178,2]
[373540798,1753035060123,-372.116225,0.00019178,2]
[373540800,1753035060132,-500.0,0.00019178,2]
[373540802,1753035060142,-500.0,0.00019178,2]
[373540804,1753035060151,-500.0,0.00019178,2]
[373540806,1753035060161,-372.116225,0.00019178,2]
[373540808,1753035060170,-500.0,0.00019178,2]
[373540809,1753035060179,-500.0,0.00019178,2]
[373540812,1753035060189,-500.0,0.00019178,2]
[373540814,1753035060199,-500.0,0.00019178,2]
[373540815,1753035060209,-372.116225,0.00019178,2]
[373540817,1753035060218,-500.0,0.00019178,2]
[373540819,1753035060228,-500.0,0.00019178,2]
[373540821,1753035060238,-372.116225,0.00019178,2]
[373540823,1753035060247,-372.116225,0.00019178,2]
[373540825,1753035060257,-500.0,0.00019178,2]
[373540827,1753035060266,-372.116225,0.00019178,2]
[373540829,1753035060276,-500.0,0.00019178,2]
[373540831,1753035060286,-372.116225,0.00019178,2]
[373540833,1753035060296,-151.0,0.00019178,2]
[373540835,1753035060306,-194.77762002,0.00019178,2]
[373540837,1753035060315,-817.17573881,0.00019178,2]
[373540839,1753035060325,-27672.58658778,0.00019178,2]
[373540849,1753035060406,-500.0,0.00019178,2]
[373540851,1753035060416,-3100.0,0.00019178,2]
[373540853,1753035060427,-28443.82579602,0.00019178,2]
[373540856,1753035060446,-11169.19195613,0.00019178,2]
[373540862,1753035060484,-109311.49247157,0.00019178,2]
[373540864,1753035060495,-4103.96367251,0.00019178,2]
[373540866,1753035060510,-1822.78396786,0.00019178,2]
[373540869,1753035060521,-5972.37519812,0.00019178,2]
[373540871,1753035060533,-60.23068609,0.00019178,2]
[373540873,1753035060543,-151.0,0.00019178,2]
[373540875,1753035060553,-151.0,0.00019178,2]
[373540877,1753035060562,-151.0,0.00019178,2]
[373540879,1753035060571,-151.0,0.00019178,2]
[373540881,1753035060580,-151.0,0.00019178,2]
[373540883,1753035060589,-151.0,0.00019178,2]
[373540885,1753035060598,-151.0,0.00019178,2]
[373540887,1753035060608,-199.13,0.00019178,2]
[373540889,1753035060620,-1198.63931529,0.00019178,2]
[373540891,1753035060632,-300.0,0.00019178,2]
[373540894,1753035060651,-500.0,0.00019178,2]
[373540896,1753035060660,-2227.0346,0.00019178,2]
[373540899,1753035060672,-301.41608471,0.00019178,2]
[373540901,1753035060681,-425.23759021,0.00019178,2]
[373540903,1753035060693,-1661.26911587,0.00019178,2]
[373540905,1753035060707,-663.02749647,0.00019178,2]
[373544267,1753035240279,156.05,0.000229,31]
[373544268,1753035240330,156.05,0.000229,31]
[373544269,1753035240427,156.05,0.000229,31]
[373544270,1753035240516,156.05,0.000229,31]
[373544271,1753035240553,156.05,0.000229,31]
[373544272,1753035240631,156.05,0.000229,31]
[373544273,1753035240695,156.05,0.000229,31]
[373544278,1753035303122,1000.0,0.0002301,30]
[373544279,1753035338325,1069.07,0.00030137,120]
[373544284,1753035549868,594.0251315,0.00030137,120]
[373544285,1753035572379,150.0,0.00030136,120]
[373544286,1753035582488,150.0,0.00023009,30]
[373544287,1753035593346,150.0,0.000211,28]